bitfinex-derivatives/quotes_ETHF0:USTF0_20250214
["timestamp","ask_amount","ask_price","bid_price","bid_amount"]
[1739572569422,3.2078,2719.4,2719.1,0.73534]
[1739572569617,3.2078,2719.4,2718.8,5.8588]
[1739572569819,3.2078,2719.7,2718.8,5.8588]
[1739572570011,3.2078,2719.8,2719.1,3.2078]
[1739572570410,3.2078,2719.5,2719.1,3.94314]
[1739572570916,3.2078,2719.5,2718.8,2.669]
[1739572571218,3.2078,2719.5,2719.3,0.73528]
[1739572571523,3.2078,2719.8,2719.3,0.73528]
[1739572571718,3.2078,2719.8,2719.4,0.73526]
[1739572571918,3.2078,2719.8,2719.6,0.73521]
[1739572572117,0.0055061,2719.9,2719.8,0.73516]
[1739572572321,0.0055061,2719.9,2719.8,3.41116]
[1739572573222,0.0055061,2719.9,2719.4,2.39588]
[1739572573223,0.0055061,2719.9,2719.7,3.2078]
[1739572573524,0.0055061,2719.9,2719.3,3.7642]
[1739572573711,0.0055061,2719.9,2719.5,0.73524]
[1739572573916,0.0055061,2719.9,2719.3,3.7642]
[1739572574116,0.0055061,2719.9,2719.6,0.7352]
[1739572574525,0.0055061,2719.9,2719.8,0.73516]
[1739572576614,0.0055061,2719.9,2719.7,0.73517]
[1739572576820,0.0055061,2719.9,2719.7,0.73519]
[1739572577222,0.0055061,2719.9,2719.6,0.73519]
[1739572577517,0.0055061,2719.9,2719.4,2.682]
[1739572577719,0.7406461,2719.9,2719.5,0.73523]
[1739572577917,0.73525,2719.5,2719.2,0.00782932]
[1739572578123,0.73525,2719.5,2718.4,5.83174332]
[1739572578124,0.73533,2719.2,2717.9,3.95708]
[1739572578330,3.2078,2718.4,2717.9,0.01361]
[1739572578520,7.56947506,2718.4,2717.9,0.01361]
[1739572578718,0.73568,2717.9,2717.1,0.73587]
[1739572579025,4.36167506,2718.0,2716.9,5.9258]
[1739572579026,3.94352,2717.8,2716.9,5.9258]
[1739572579228,0.73574,2717.7,2716.9,5.9258]
[1739572579515,3.2078,2717.5,2716.9,3.2078]
[1739572580123,3.2078,2717.5,2716.6,2.715]
[1739572580327,3.2078,2717.5,2717.3,0.73583]
[1739572580620,5.09732506,2718.0,2717.4,0.73581]
[1739572580621,3.2078,2717.8,2717.4,0.73581]
[1739572580830,4.36167506,2718.0,2717.1,5.9348]
[1739572581021,4.36167506,2718.0,2717.6,0.73575]
[1739572581420,4.36167506,2718.0,2717.5,3.2078]
[1739572581630,7.56947506,2718.8,2717.8,3.2078]
[1739572581820,7.56947506,2718.8,2718.3,0.73557]
[1739572582019,0.5871,2719.6,2718.7,0.73545]
[1739572582020,4.36167506,2719.2,2718.7,0.73545]
[1739572582225,4.36167506,2719.2,2718.4,3.2078]
[1739572582425,4.36167506,2719.2,2718.8,0.73542]
[1739572582624,3.2078,2719.3,2718.7,2.73]
[1739572582826,4.91697506,2719.6,2719.2,0.73531]
[1739572583132,4.91697506,2719.6,2719.2,0.73532]
[1739572583528,4.36167506,2719.6,2719.1,2.73651633]
[1739572583733,3.21331633,2719.7,2719.1,2.73651633]
[1739572583931,3.21331633,2719.7,2719.4,0.73526]
[1739572584126,3.21331633,2719.7,2719.1,2.73651633]
[1739572584828,3.21331633,2719.7,2719.4,0.73525]
[1739572585030,0.00551633,2719.7,2719.5,0.73522]
[1739572585338,0.00551633,2719.7,2719.6,0.73521]
[1739572585631,0.00551633,2719.7,2719.6,3.94301]
[1739572586428,4.36167506,2720.4,2720.2,0.73505]
[1739572586736,3.2078,2720.6,2720.3,0.73502]
[1739572587126,4.36167506,2720.8,2720.5,0.73497]
[1739572587331,4.36167506,2720.8,2720.0,2.726]
[1739572587332,7.56947506,2721.2,2720.4,2.727]
[1739572587534,8.30427506,2721.2,2720.5,2.727]
[1739572587733,0.00551633,2720.9,2720.2,3.2078]
[1739572588035,3.21331633,2720.9,2720.2,3.94284]
[1739572588236,3.21331633,2720.9,2719.6,0.5691]
[1739572588237,3.94819633,2720.9,2720.6,0.00551633]
[1739572588436,3.21331633,2720.9,2720.6,0.00551633]
[1739572588628,3.21331633,2720.9,2720.7,0.73491]
[1739572588828,3.21331633,2720.9,2720.6,0.00551633]
[1739572589034,0.00551633,2720.9,2720.8,0.73489]
[1739572589229,0.00551633,2720.9,2720.8,3.46289]
[1739572589634,0.00551633,2720.9,2720.8,6.67069]
[1739572591938,3.2078,2721.8,2720.8,6.67069]
[1739572591939,4.92757506,2722.0,2721.5,0.73468]
[1739572592242,4.92757506,2722.0,2721.6,0.73467]
[1739572592631,3.2078,2722.1,2721.2,5.9278]
[1739572592832,3.2078,2722.1,2721.5,3.2078]
[1739572593029,0.00551633,2721.9,2721.6,2.72]
[1739572593930,0.00551633,2721.9,2721.6,3.45466]
[1739572594238,0.00551633,2721.9,2721.6,2.72]
[1739572594633,0.00551633,2721.9,2721.8,0.73462]
[1739572595039,0.00551633,2721.9,2721.6,2.72]
[1739572595235,0.00551633,2721.9,2721.5,3.44969]
[1739572595445,0.00551633,2721.9,2721.6,0.73466]
[1739572595739,0.00551633,2721.9,2721.8,0.73462]
[1739572596535,0.00551633,2721.9,2721.5,2.715]
[1739572596733,0.00551633,2721.9,2721.7,0.73463]
[1739572596939,0.00551633,2721.9,2721.8,0.73462]
[1739572597135,0.00551633,2721.9,2721.5,2.715]
[1739572597338,0.00551633,2721.9,2721.7,0.73462]
[1739572597537,0.00551633,2721.9,2721.5,2.715]
[1739572597728,0.00551633,2721.9,2721.8,0.73462]
[1739572597933,0.00551633,2721.9,2721.7,0.73463]
[1739572598340,0.00551633,2721.9,2721.8,0.73462]
[1739572598642,0.00551633,2721.9,2721.5,2.715]
[1739572599044,0.00551633,2721.9,2721.7,0.73463]
[1739572599238,0.00551633,2721.9,2721.8,0.73462]
[1739572600137,0.00551633,2721.9,2721.5,5.9228]
[1739572600338,0.00551633,2721.9,2721.8,0.73462]
[1739572600640,0.74011633,2721.9,2721.6,0.73466]
[1739572600843,0.00551633,2721.9,2721.7,0.73464]
[1739572601042,0.74011633,2721.9,2721.7,0.73464]
[1739572601344,0.00551633,2721.9,2721.2,3.2078]
[1739572601538,3.2078,2721.3,2720.7,3.7964]
[1739572601740,0.73474,2721.4,2721.2,0.73478]
[1739572601939,3.2078,2721.3,2721.2,0.73478]
[1739572602138,3.2078,2721.5,2720.7,5.63367]
[1739572602339,0.73477,2721.3,2721.1,0.7348]
[1739572602539,0.73474,2721.4,2721.1,0.7348]
[1739572602743,3.94252,2721.5,2721.2,0.73477]
[1739572602943,3.2078,2721.5,2720.8,1.83723]
[1739572603139,3.94252,2721.5,2721.2,0.73478]
[1739572603339,0.73473,2721.4,2721.2,0.73478]
[1739572603540,3.94251,2721.5,2720.8,1.83723]
[1739572603741,3.94251,2721.5,2720.9,4.52815]
[1739572603943,3.94251,2721.5,2721.2,0.73477]
[1739572604144,3.94251,2721.5,2720.9,2.691]
[1739572604145,3.2078,2721.5,2720.9,2.691]
[1739572604643,0.73482,2721.1,2720.7,3.2786]
[1739572604943,3.2078,2720.9,2720.6,0.00551633]
[1739572605147,0.73492,2720.7,2720.6,0.00551633]
[1739572605345,2.695,2720.7,2719.5,2.695]
[1739572605549,0.73505,2720.2,2719.5,2.695]
[1739572605850,0.73505,2720.2,2719.9,0.73513]
[1739572606047,3.2078,2720.5,2719.9,0.73513]
[1739572606249,0.73506,2720.2,2719.7,3.2078]
[1739572606451,0.73503,2720.3,2719.9,0.73512]
[1739572606654,3.94837633,2720.2,2719.7,3.21331633]
[1739572606843,3.21331633,2720.2,2719.7,0.00551633]
[1739572607048,0.73515,2719.9,2719.7,0.00551633]
[1739572607749,3.21331633,2720.2,2719.7,0.00551633]
[1739572607953,3.94294,2719.9,2719.7,0.00551633]
[1739572608154,3.2078,2719.9,2719.7,0.00551633]
[1739572608546,3.94294,2719.9,2719.7,0.00551633]
[1739572608950,3.2078,2719.9,2719.7,0.00551633]
[1739572609851,3.2078,2719.9,2719.8,0.73516]
[1739572610050,3.2078,2719.9,2719.7,0.00551633]
[1739572610355,3.21331633,2720.2,2719.7,0.00551633]
[1739572610555,0.7351,2720.1,2719.7,0.00551633]
[1739572610752,0.7351,2720.1,2719.8,0.73516]
[1739572611550,0.73508,2720.1,2719.8,0.73516]
[1739572612159,0.73508,2720.1,2719.7,0.00551633]
[1739572612550,3.21331633,2720.2,2719.7,0.00551633]
[1739572612848,11.88931633,2720.2,2719.1,3.2078]
[1739572613052,0.73559,2718.2,2717.9,0.73566]
[1739572613260,3.2078,2718.2,2717.8,0.5687]
[1739572613553,0.73567,2717.9,2717.8,0.5687]
[1739572613755,0.73563,2718.1,2717.7,3.2078]
[1739572614050,3.94891633,2718.2,2717.7,3.2078]
[1739572614252,3.94891633,2718.2,2717.6,0.00551633]
[1739572614253,3.21331633,2718.2,2717.6,0.00551633]
[1739572614463,0.73572,2717.8,2717.6,0.00551633]
[1739572614650,3.21331633,2718.2,2717.6,0.00551633]
[1739572615555,0.73572,2717.8,2717.6,0.00551633]
[1739572616052,3.2078,2717.9,2717.6,0.00551633]
[1739572616252,0.73573,2717.7,2717.6,0.00551633]
[1739572617264,0.73572,2717.8,2717.6,0.00551633]
[1739572617559,0.73573,2717.8,2717.6,0.00551633]
[1739572617949,3.2078,2717.9,2717.6,0.00551633]
[1739572618154,0.7357,2717.8,2717.6,0.00551633]
[1739572618547,0.73573,2717.7,2717.6,0.00551633]
[1739572618850,2.764,2717.8,2716.6,2.764]
[1739572619155,3.2078,2716.9,2716.5,0.5526]
[1739572619356,3.2078,2717.0,2716.5,3.3176]
[1739572619761,0.73603,2716.6,2716.5,3.3176]
[1739572619962,3.2078,2717.0,2716.3,3.2078]
[1739572620166,0.00551633,2716.7,2715.8,24.07334581]
[1739572620463,4.36719139,2716.7,2715.8,20.387]
[1739572620763,4.36719139,2716.7,2715.6,2.768]
[1739572620764,0.73627,2715.7,2715.6,2.768]
[1739572620962,1.8404,2716.2,2714.9,4.7053]
[1739572621264,0.73639,2715.3,2714.9,7.1055]
[1739572621459,0.73642,2715.2,2714.9,7.1055]
[1739572621651,0.73641,2715.2,2714.9,6.5322]
[1739572621856,3.2078,2715.5,2714.9,6.5322]
[1739572622051,0.74191633,2715.3,2714.9,6.5322]
[1739572622260,0.74191633,2715.3,2714.7,0.73653]
[1739572622261,0.00551633,2715.3,2714.7,0.73653]
[1739572622564,4.36167506,2715.1,2714.0,3.2078]
[1739572622764,4.36167506,2715.1,2714.1,3.2078]
[1739572622968,5.09812506,2715.1,2714.5,3.2078]
[1739572623256,3.21331633,2715.3,2713.7,0.5803]
[1739572623257,0.00551633,2715.3,2714.8,3.94431]
[1739572623458,0.00551633,2715.3,2715.2,0.7364]
[1739572623663,0.73607,2716.5,2715.5,0.7363]
[1739572623860,7.56947506,2716.7,2715.9,0.7362]
[1739572624164,7.56947506,2716.7,2715.9,0.73619]
[1739572624351,7.56947506,2716.7,2716.1,3.2078]
[1739572624560,3.2078,2716.7,2716.1,3.2078]
[1739572624758,0.00551633,2716.7,2716.6,0.73602]
[1739572625158,0.00551633,2716.7,2716.4,3.2078]
[1739572625363,0.00551633,2716.7,2716.2,3.9834]
[1739572625560,0.74152633,2716.7,2716.2,0.5374]
[1739572626367,0.00551633,2716.7,2716.2,0.5374]
[1739572626772,0.74151633,2716.7,2716.2,0.5374]
[1739572626967,0.74152633,2716.7,2716.2,0.5374]
[1739572627166,0.00551633,2716.7,2716.2,0.5374]
[1739572627575,0.00551633,2716.7,2716.2,3.7452]
[1739572627871,0.00551633,2716.7,2716.4,0.73606]
[1739572628068,0.00551633,2716.7,2716.2,3.7452]
[1739572628573,0.00551633,2716.7,2716.5,0.73604]
[1739572628871,0.00551633,2716.7,2716.6,0.73603]
[1739572629064,0.00551633,2716.7,2716.6,3.94383]
[1739572630161,3.2078,2717.9,2716.6,9.2078]
[1739572630368,0.73572,2717.8,2717.2,3.94366]
[1739572630563,3.2078,2717.9,2717.3,2.864]
[1739572630960,3.2078,2717.9,2717.4,0.7358]
[1739572631161,3.2078,2718.3,2717.8,3.94348]
[1739572631368,3.2078,2718.3,2717.9,0.73565]
[1739572631768,4.36167506,2718.7,2717.8,6.0808]
[1739572631769,7.56947506,2718.7,2717.8,6.0808]
[1739572632074,0.7356,2718.2,2717.9,2.871]
[1739572632461,0.00551633,2718.4,2717.8,0.00551633]
[1739572632462,0.73567,2717.9,2717.8,0.00551633]
[1739572632673,3.2078,2718.1,2717.8,0.00551633]
[1739572633276,3.94342,2718.1,2717.8,0.00551633]
[1739572633469,3.2078,2718.1,2717.8,0.00551633]
[1739572633669,0.73567,2718.0,2717.8,0.00551633]
[1739572633870,3.2078,2718.1,2717.8,0.00551633]
[1739572634072,0.73565,2718.0,2717.8,0.00551633]
[1739572634274,3.2078,2718.1,2717.8,0.00551633]
[1739572634575,0.73567,2717.9,2717.8,0.00551633]
[1739572639375,3.2078,2718.1,2717.8,0.00551633]
[1739572639674,0.73567,2717.9,2717.8,0.00551633]
[1739572639989,3.2078,2718.1,2717.8,0.00551633]
[1739572640170,2.837,2718.0,2716.9,1.36805]
[1739572640375,7.56947506,2717.0,2715.9,0.5365]
[1739572640578,3.2078,2716.2,2715.4,2.867]
[1739572640776,3.2078,2715.5,2715.1,3.2078]
[1739572640975,3.2078,2715.5,2715.1,2.871]
[1739572641185,0.73643,2715.1,2715.0,0.5365]
[1739572641370,3.2078,2715.2,2714.7,2.874]
[1739572641679,3.2078,2715.2,2714.6,0.5587]
[1739572641872,3.2078,2715.2,2714.7,0.00551633]
[1739572642072,3.2078,2714.9,2713.6,3.5766]
[1739572642273,3.2078,2714.1,2713.7,2.875]
[1739572642478,3.2078,2714.2,2713.7,2.875]
[1739572642683,0.73681,2713.8,2713.5,0.579]
[1739572642872,3.2078,2713.8,2713.1,3.2078]
[1739572643075,3.2078,2713.3,2712.8,2.878]
[1739572643584,0.0055271,2713.7,2712.4,0.3688]
[1739572643585,3.94482,2713.0,2712.4,3.2078]
[1739572643885,3.2078,2712.6,2712.3,3.46]
[1739572644584,3.2078,2713.0,2712.3,9.8288]
[1739572644882,3.2078,2713.0,2712.6,0.73709]
[1739572645380,3.2078,2713.0,2712.3,3.8288]
[1739572645381,3.2078,2713.0,2712.7,0.73708]
[1739572645680,0.7423471,2713.7,2712.8,2.876]
[1739572645681,0.0055271,2713.7,2712.8,2.876]
[1739572645881,0.0055271,2713.7,2713.6,0.73684]
[1739572646083,3.2078,2714.1,2713.6,2.876]
[1739572646289,3.2078,2714.1,2713.9,0.73674]
[1739572646484,3.2078,2715.4,2714.0,3.5766]
[1739572646688,3.2078,2715.8,2714.6,3.2078]
[1739572646885,3.2078,2715.8,2714.7,4.0657]
[1739572647182,3.2078,2715.8,2714.9,3.2078]
[1739572647376,0.0055271,2715.5,2715.0,0.7419671]
[1739572647580,0.0055271,2715.5,2715.0,0.0055271]
[1739572648076,3.2078,2715.1,2715.0,0.0055271]
[1739572648280,3.94423,2715.1,2715.0,0.0055271]
[1739572648589,3.94423,2715.1,2714.3,2.892]
[1739572648590,3.2078,2715.1,2714.3,2.892]
[1739572648785,4.36167506,2715.2,2714.3,2.892]
[1739572648786,3.2078,2714.7,2714.3,2.892]
[1739572648977,3.2078,2714.4,2713.4,2.914]
[1739572649182,3.2078,2714.0,2713.4,3.65089]
[1739572649584,3.20449242,2714.0,2713.2,3.65094]
[1739572649781,3.2078,2713.7,2713.2,3.65094]
[1739572650090,0.0055271,2714.0,2713.3,0.73692]
[1739572650091,3.2133271,2714.0,2713.3,0.73692]
[1739572650293,3.2133271,2714.0,2713.2,2.914]
[1739572650681,3.2078,2713.7,2713.2,2.914]
[1739572651187,3.2078,2713.7,2713.0,2.92]
[1739572651388,3.2078,2713.7,2713.2,0.73693]
[1739572651787,3.2078,2713.7,2713.3,0.73692]
[1739572652191,3.2078,2713.7,2712.9,3.2078]
[1739572652387,3.2133271,2714.0,2713.2,2.923]
[1739572652588,3.2078,2713.7,2713.2,0.73692]
[1739572652889,3.2078,2713.7,2713.4,0.73689]
[1739572653092,0.0055271,2714.0,2713.9,0.73676]
[1739572653291,0.0055271,2714.0,2713.9,3.65976]
[1739572653591,3.2078,2715.1,2713.9,12.1308]
[1739572653792,3.2078,2714.8,2714.2,3.2078]
[1739572653988,3.2078,2714.8,2714.7,0.73654]
[1739572654182,3.2078,2715.3,2714.6,2.925]
[1739572654386,3.2078,2715.3,2715.0,0.73643]
[1739572654593,3.2078,2715.6,2715.2,0.73641]
[1739572654792,0.0055271,2715.4,2715.2,0.73641]
[1739572654988,0.0055271,2715.4,2715.1,2.925]
[1739572655190,0.0055271,2715.4,2715.3,0.73638]
[1739572655697,4.17867735,2716.2,2715.3,6.0]
[1739572655884,4.17867735,2716.2,2715.9,0.73621]
[1739572656081,4.17867735,2716.2,2715.8,2.924]
[1739572656388,4.17867735,2716.2,2716.1,0.73616]
[1739572658498,2.44961735,2716.2,2716.1,9.94396]
[1739572658794,3.2078,2717.2,2716.1,3.2078]
[1739572659192,3.2078,2717.2,2717.0,0.73592]
[1739572659497,3.2078,2717.5,2717.0,0.73592]
[1739572659888,3.2078,2717.5,2717.0,0.0055271]
[1739572660088,3.2133271,2717.5,2717.1,0.73587]
[1739572660488,3.2133271,2717.5,2717.0,0.0055271]
[1739572660890,0.0055271,2717.5,2717.2,0.73585]
[1739572661693,0.0055271,2717.5,2717.3,0.73583]
[1739572661896,0.73589,2717.1,2717.0,0.0055271]
[1739572662098,0.73594,2717.0,2716.2,2.919]
[1739572662303,3.2078,2716.6,2716.3,0.73609]
[1739572662799,3.2078,2716.6,2716.4,0.73606]
[1739572662991,3.2078,2716.6,2716.5,0.73605]
[1739572663198,5.09755506,2717.2,2716.3,3.2078]
[1739572663199,3.2078,2717.2,2716.3,3.2078]
[1739572663400,3.2078,2717.2,2716.4,1.84021]
[1739572663801,0.0055271,2717.5,2716.7,1.84]
[1739572664002,0.0055271,2717.5,2717.4,0.73581]
[1739572664496,0.0055271,2717.5,2716.8,2.917]
[1739572664799,0.0055271,2717.5,2716.9,3.65293]
[1739572664999,0.7413271,2717.5,2716.9,3.65293]
[1739572665199,3.2078,2717.3,2716.9,2.917]
[1739572665998,3.2078,2717.3,2716.9,3.65294]
[1739572666304,3.2078,2717.3,2716.9,2.917]
[1739572666504,3.2078,2717.3,2717.0,0.7359]
[1739572666702,3.2078,2717.3,2716.9,2.917]
[1739572666998,0.0055271,2717.5,2716.9,2.917]
[1739572666999,0.0055271,2717.5,2717.4,0.73581]
[1739572668706,0.0055271,2717.5,2717.4,3.63781]
[1739572674409,7.1e-06,2717.5,2717.4,9.63781]
[1739572674614,7.1e-06,2717.5,2717.4,10.00581]
[1739572677313,7.1e-06,2717.5,2717.4,7.10381]
[1739572677516,7.1e-06,2717.5,2717.4,9.97281]
[1739572681122,3.2078,2718.9,2717.5,1.83941]
[1739572681322,3.2078,2718.9,2718.8,0.73543]
[1739572681619,3.2078,2718.9,2718.8,3.58843]
[1739572682421,3.2078,2718.9,2718.8,2.853]
[1739572682928,3.2078,2718.9,2718.8,3.58843]
[1739572683124,3.2078,2718.9,2717.4,2.20748]
[1739572683125,13.56947506,2718.9,2717.4,2.20748]
[1739572683438,3.2078,2718.1,2717.5,2.855]
[1739572683725,3.2078,2718.9,2717.8,3.2078]
[1739572683928,0.0055271,2719.1,2718.8,0.73542]
[1739572684124,0.0055271,2719.1,2718.8,2.859]
[1739572684333,0.0055271,2719.1,2718.9,0.7354]
[1739572684517,0.0055271,2719.1,2719.0,0.73538]
[1739572685221,0.0055271,2719.1,2718.7,0.00551684]
[1739572685422,0.0055271,2719.1,2717.8,0.73569]
[1739572685423,5.04643,2718.8,2717.8,0.73569]
[1739572685624,3.2078,2718.1,2717.8,3.5987]
[1739572685823,3.2078,2718.1,2717.8,2.863]
[1739572686526,3.2078,2718.6,2717.8,2.863]
[1739572686837,3.2078,2718.6,2717.9,3.2078]
[1739572687133,3.2078,2718.6,2718.3,0.73555]
[1739572687426,3.2078,2718.6,2718.3,0.73556]
[1739572687617,3.2078,2718.6,2717.9,3.2078]
[1739572687822,3.2078,2718.6,2718.5,0.73551]
[1739572688032,3.2078,2718.6,2718.5,3.59351]
[1739572690133,0.0055271,2719.1,2718.5,3.59351]
[1739572690134,3.2133271,2719.1,2718.5,2.858]
[1739572690326,3.2133271,2719.1,2719.0,0.73538]
[1739572690732,3.2133271,2719.1,2718.9,0.73539]
[1739572691035,3.2133271,2719.1,2718.5,2.858]
[1739572691332,3.2133271,2719.1,2718.9,0.73539]
[1739572691736,3.2133271,2719.1,2718.5,6.0658]
[1739572692036,0.0055271,2719.1,2719.0,0.73538]
[1739572692437,0.0055271,2719.1,2719.0,3.58138]
[1739572692936,8.70597506,2720.1,2719.1,1.83832]
[1739572693241,9.44106506,2720.1,2719.2,1.83826]
[1739572693423,4.3443,2720.1,2719.8,0.73515]
[1739572693729,4.3443,2720.1,2719.1,3.2078]
[1739572693730,4.3443,2720.1,2719.6,2.843]
[1739572693933,0.73531,2719.3,2718.8,0.73542]
[1739572694123,3.2078,2719.0,2718.6,2.845]
[1739572694329,3.2078,2719.0,2718.8,0.00551684]
[1739572694729,0.73534,2719.2,2718.8,0.00551684]
[1739572694936,3.2078,2719.3,2718.8,0.00551684]
[1739572695432,0.5806,2719.6,2718.8,0.00551684]
[1739572695630,3.943,2719.7,2718.9,1.83852]
[1739572695836,3.2078,2719.4,2718.8,0.00551684]
[1739572696037,3.2078,2719.4,2719.2,0.73531]
[1739572696338,3.2078,2719.4,2719.2,3.57731]
[1739572696933,0.73532,2719.3,2718.8,3.57993684]
[1739572697137,3.2078,2719.1,2718.8,3.57993684]
[1739572697928,3.2078,2719.1,2718.9,0.73538]
[1739572698131,3.2078,2719.1,2718.8,2.84451684]
[1739572698430,3.2078,2719.1,2719.0,0.73538]
[1739572698627,3.2078,2719.3,2719.2,0.73532]
[1739572698824,3.2078,2719.6,2718.9,1.83852]
[1739572699031,3.2078,2719.6,2719.3,0.73529]
[1739572699238,3.2078,2719.7,2719.5,0.73523]
[1739572700333,3.2078,2719.7,2719.3,2.836]
[1739572700532,3.2078,2719.7,2719.6,0.73521]
[1739572701733,3.2078,2719.7,2719.3,4.67421]
[1739572701734,9.92138664,2720.1,2719.3,4.67421]
[1739572701929,9.92138664,2720.1,2719.7,0.73516]
[1739572702129,9.92138664,2720.1,2719.3,4.67421]
[1739572702636,5.5715698,2720.0,2719.3,4.67421]
[1739572702938,5.5715698,2720.0,2719.7,0.73517]
[1739572703327,5.5715698,2720.0,2719.3,4.67421]
[1739572703532,5.5715698,2720.0,2719.7,0.73516]
[1739572703733,5.5715698,2720.0,2719.3,4.67421]
[1739572703939,5.5715698,2720.0,2719.4,1.83818]
[1739572704241,5.5715698,2720.0,2719.3,2.836]
[1739572704435,6.3066898,2720.0,2719.6,0.7352]
[1739572704735,0.73514,2719.9,2719.5,0.73523]
[1739572704935,3.2078,2719.8,2719.3,2.836]
[1739572705144,3.2078,2719.8,2719.4,2.816]
[1739572705441,3.2078,2719.6,2719.5,2.816]
[1739572705742,3.94301,2719.6,2719.5,2.816]
[1739572706335,3.2078,2719.6,2719.5,2.816]
[1739572706536,3.2078,2719.6,2719.5,3.55124]
[1739572707134,3.2078,2719.6,2719.5,2.816]
[1739572707536,3.2078,2719.6,2719.5,3.55124]
[1739572707743,3.2078,2719.6,2719.5,2.816]
[1739572707938,3.2078,2719.6,2718.8,0.00551684]
[1739572708147,3.2078,2719.6,2718.9,0.73538]
[1739572708148,3.9431,2719.3,2718.9,0.73538]
[1739572708444,3.9431,2719.3,2718.8,0.74093684]
[1739572708445,0.73533,2719.2,2718.8,0.74093684]
[1739572708946,3.2078,2719.0,2718.8,0.74093684]
[1739572709340,0.7354,2718.9,2718.8,0.00551684]
[1739572710634,6.0,2718.9,2717.9,2.814]
[1739572710833,3.2078,2718.2,2717.9,2.814]
[1739572711038,3.2078,2718.2,2717.6,0.5792]
[1739572711336,3.2078,2718.2,2717.9,0.73566]
[1739572711641,3.2078,2718.2,2718.0,0.73563]
[1739572711944,3.2078,2718.2,2718.1,0.73562]
[1739572712246,3.2078,2718.2,2717.8,0.00551684]
[1739572712247,6.97403363,2718.1,2718.0,0.73565]
[1739572712439,6.97403363,2718.1,2718.0,3.54665]
[1739572712640,6.97403363,2718.1,2718.0,2.811]
[1739572713445,6.97403363,2718.1,2718.0,3.54665]
[1739572713641,6.97403363,2718.1,2718.0,0.73565]
[1739572715341,3.21331684,2718.3,2718.1,0.73562]
[1739572715539,3.21331684,2718.3,2717.9,2.812]
[1739572715847,3.21331684,2718.3,2718.2,0.73559]
[1739572716235,14.91475698,2718.7,2718.6,0.73548]
[1739572716444,14.91475698,2718.7,2718.6,3.53748]
[1739572717643,14.91475698,2718.7,2718.6,9.53748]
[1739572717845,14.91475698,2718.7,2718.6,13.53433112]
[1739572718849,11.99815988,2718.7,2718.6,13.53433112]
[1739572719044,6.36880052,2718.7,2718.6,14.58072538]
[1739572719245,17.26206009,2718.9,2718.8,0.73543]
[1739572719548,0.00551684,2718.9,2718.8,4.23300374]
[1739572719846,27.41458147,2719.5,2719.4,0.73527]
[1739572720040,27.41458147,2719.5,2719.4,10.77492112]
[1739572720245,27.41458147,2719.5,2719.4,16.77492112]
[1739572721350,26.59838147,2719.5,2719.4,16.77492112]
[1739572722247,22.01178147,2719.5,2719.4,16.77492112]
[1739572722451,19.13453442,2719.5,2719.4,17.14292112]
[1739572722648,17.55769737,2719.5,2719.4,17.14292112]
[1739572722849,13.58154032,2719.5,2719.4,17.14292112]
[1739572723153,13.21389327,2719.5,2719.4,17.14292112]
[1739572723355,9.72006902,2720.5,2720.2,0.73505]
[1739572723540,3.2078,2721.0,2720.2,10.04565112]
[1739572723844,7.36146186,2720.8,2720.4,0.73498]
[1739572724251,3.7585,2721.3,2720.7,0.7349]
[1739572724452,0.00551684,2720.9,2720.8,2.838]
[1739572724646,0.00551684,2720.9,2720.8,3.57289]
[1739572724953,0.00551684,2720.9,2720.8,6.78069]
[1739572725345,0.00551684,2720.9,2720.8,12.78069]
[1739572725547,0.00551684,2720.9,2720.8,12.77717309]
[1739572728059,3.2078,2722.5,2721.1,1.83701]
[1739572728253,7.36146186,2722.3,2721.9,0.73458]
[1739572728557,7.36146186,2722.3,2722.0,2.837]
[1739572728954,4.56235112,2722.9,2722.0,2.837]
[1739572728955,0.73436,2722.8,2722.1,3.5758]
[1739572729155,0.00551684,2722.4,2722.1,3.5758]
[1739572729459,0.00551684,2722.4,2722.3,0.73448]
[1739572731958,0.00551684,2722.4,2722.3,2.849]
[1739572733247,0.00551684,2722.4,2722.2,0.00551684]
[1739572733554,0.00551684,2722.4,2722.3,2.844]
[1739572734157,7.3669787,2722.4,2722.2,0.00551684]
[1739572734354,0.00551684,2722.4,2722.3,2.843]
[1739572734754,7.3669787,2722.4,2722.3,2.843]
[1739572734961,7.3669787,2722.4,2722.2,0.00551684]
[1739572735162,0.00551684,2722.4,2722.3,2.842]
[1739572735660,7.3669787,2722.4,2722.3,2.842]
[1739572735854,8.1014387,2722.4,2722.3,2.842]
[1739572736564,7.3669787,2722.4,2722.2,0.00551684]
[1739572736862,8.09594186,2722.3,2722.2,2.83851684]
[1739572737058,7.36146186,2722.3,2721.7,0.368]
[1739572737253,7.36146186,2721.8,2721.7,0.368]
[1739572737460,7.36146186,2721.8,2721.7,3.199]
[1739572737661,7.36146186,2721.8,2721.7,3.93365]
[1739572738259,7.36146186,2721.8,2721.7,3.199]
[1739572738655,7.36146186,2721.8,2721.7,3.93365]
[1739572740365,7.36146186,2721.8,2721.7,3.199]
[1739572741967,7.36146186,2721.8,2721.7,3.93365]
[1739572742260,0.5406,2722.3,2721.7,9.199]
[1739572742453,8.63655186,2722.3,2721.7,3.199]
[1739572742660,8.63655186,2722.3,2721.9,0.73458]
[1739572743158,7.90206186,2722.3,2721.9,0.73459]
[1739572743357,7.90206186,2722.3,2722.0,0.73455]
[1739572743760,7.90206186,2722.3,2721.7,5.0356]
[1739572743958,7.90206186,2722.3,2722.0,0.73454]
[1739572744556,7.90206186,2722.3,2721.9,3.2078]
[1739572744760,7.90206186,2722.3,2722.1,0.73452]
[1739572744968,7.90206186,2722.3,2722.2,2.807]
[1739572746163,0.5655,2722.9,2722.2,2.807]
[1739572746164,3.2078,2723.4,2722.2,12.0148]
[1739572746381,7.36146186,2723.1,2723.0,0.73429]